fUSD/lending_fUSD_20240210
["ID","MTS","AMOUNT","RATE_DAILY","PERIOD"]
[313661925,1707552677408,-500.0,0.00022995,2]
[313661926,1707552677435,-500.0,0.00022995,2]
[313661927,1707552677464,-540.63,0.00022995,2]
[313661928,1707552677491,-500.0,0.00022995,2]
[313661929,1707552677518,-500.0,0.00022995,2]
[313661930,1707552677545,-1273.92,0.00022995,2]
[313661931,1707552677573,-500.0,0.00022995,2]
[313661932,1707552677599,-500.0,0.00022995,2]
[313661933,1707552677626,-500.0,0.00022995,2]
[313661934,1707552677652,-500.0,0.00022995,2]
[313661935,1707552677678,-500.0,0.00022995,2]
[313661936,1707552677705,-500.0,0.00022995,2]
[313661937,1707552677731,-500.0,0.00022995,2]
[313661938,1707552677759,-500.0,0.00022995,2]
[313661939,1707552677786,-3676.53,0.00022995,2]
[313661940,1707552677815,-621.57,0.00022995,2]
[313661941,1707552677843,-500.0,0.00022995,2]
[313661942,1707552677870,-500.0,0.00022995,2]
[313661943,1707552677896,-500.0,0.00022995,2]
[313661944,1707552677924,-556.44,0.00022995,2]
[313661945,1707552677952,-2402.11,0.00022995,2]
[313661946,1707552677979,-500.0,0.00022995,2]
[313661947,1707552678006,-3170.93,0.00022995,2]
[313661948,1707552678033,-500.0,0.00022995,2]
[313661949,1707552678061,-620.0,0.00022995,2]
[313661950,1707552678089,-500.0,0.00022995,2]
[313661951,1707552678115,-547.23737936,0.00022995,2]
[313661952,1707552678143,-500.0,0.00022995,2]
[313661953,1707552678170,-500.0,0.00022995,2]
[313661954,1707552678198,-490.05605404,0.00022995,2]
[313661955,1707552678225,-314.52168855,0.00022995,2]
[313661956,1707552678253,-1087.07,0.00022995,2]
[313661957,1707552678283,-512.56,0.00022995,2]
[313661958,1707552678311,-500.0,0.00022995,2]
[313661959,1707552678339,-808.17,0.00022995,2]
[313661960,1707552678367,-952.38,0.00022995,2]
[313661961,1707552678394,-511.54743809,0.00022995,2]
[313661962,1707552678415,-3635.52,0.00022995,2]
[313661963,1707552678436,-619.66,0.00022995,2]
[313661964,1707552678457,-500.0,0.00022995,2]
[313661965,1707552678478,-500.0,0.00022995,2]
[313661966,1707552678500,-2767.17,0.00022995,2]
[313661967,1707552678826,-500.0,0.00022995,2]
[313661968,1707552678864,-500.0,0.00022995,2]
[313661969,1707552678885,-14439.39,0.00022995,2]
[313661970,1707552678907,-500.0,0.00022995,2]
[313661971,1707552678931,-3761.18,0.00022995,2]
[313661972,1707552678953,-500.0,0.00022995,2]
[313661973,1707552678975,-2673.84,0.00022995,2]
[313661974,1707552678997,-2167.32,0.00022995,2]
[313661975,1707552679019,-500.0,0.00022995,2]
[313661976,1707552679040,-1230.71,0.00022995,2]
[313661977,1707552679062,-15320.19,0.00022995,2]
[313661978,1707552679084,-233.36014724,0.00022995,2]
[313661979,1707552679105,-500.0,0.00022995,2]
[313661980,1707552679126,-526.81782397,0.00022995,2]
[313661981,1707552679147,-500.0,0.00022995,2]
[313661982,1707552679167,-500.0,0.00022995,2]
[313661983,1707552679189,-500.0,0.00022995,2]
[313661984,1707552679209,-754.27,0.00022995,2]
[313661985,1707552679229,-500.0,0.00022995,2]
[313661986,1707552679251,-500.0,0.00022995,2]
[313661987,1707552679271,-500.0,0.00022995,2]
[313661988,1707552679292,-4078.21,0.00022995,2]
[313661989,1707552679312,-500.0,0.00022995,2]
[313661990,1707552679335,-2537.44,0.00022995,2]
[313661991,1707552679355,-500.0,0.00022995,2]
[313661992,1707552679376,-500.0,0.00022995,2]
[313661993,1707552679397,-500.0,0.00022995,2]
[313661994,1707552679417,-739.74,0.00022995,2]
[313661995,1707552679438,-13870.85,0.00022995,2]
[313661996,1707552679459,-500.0,0.00022995,2]
[313661997,1707552679479,-500.0,0.00022995,2]
[313661998,1707552679500,-900.64,0.00022995,2]
[313661999,1707552679530,-521.95,0.00022995,2]
[313662000,1707552679551,-552.64,0.00022995,2]
[313662001,1707552679573,-601.15627985,0.00022995,2]
[313662002,1707552679596,-500.0,0.00022995,2]
[313662003,1707552679617,-601.34,0.00022995,2]
[313662004,1707552679639,-500.0,0.00022995,2]
[313662005,1707552679659,-500.0,0.00022995,2]
[313662006,1707552679680,-500.0,0.00022995,2]
[313662007,1707552679701,-544.16711389,0.00022995,2]
[313662008,1707552679721,-594.13,0.00022995,2]
[313662009,1707552679741,-600.78,0.00022995,2]
[313662010,1707552679764,-2967.16,0.00022995,2]
[313662011,1707552679784,-500.0,0.00022995,2]
[313662012,1707552679805,-500.0,0.00022995,2]
[313662013,1707552679825,-500.0,0.00022995,2]
[313662014,1707552679848,-1650.75,0.00022995,2]
[313662015,1707552679868,-779.69,0.00022995,2]
[313662016,1707552679889,-500.0,0.00022995,2]
[313662017,1707552679910,-500.0,0.00022995,2]
[313662018,1707552679931,-1708.54,0.00022995,2]
[313662019,1707552679953,-500.0,0.00022995,2]
[313662020,1707552679975,-500.0,0.00022995,2]
[313662021,1707552679997,-500.0,0.00022995,2]
[313662022,1707552680020,-500.0,0.00022995,2]
[313662023,1707552680043,-867.19,0.00022995,2]
[313662024,1707552680068,-500.0,0.00022995,2]
[313662025,1707552680090,-1128.82,0.00022995,2]
[313662026,1707552680111,-1022.63,0.00022995,2]
[313662027,1707552680133,-1108.09,0.00022995,2]
[313662028,1707552680155,-1509.89,0.00022995,2]
[313662029,1707552680177,-500.0,0.00022995,2]
[313662030,1707552680199,-500.0,0.00022995,2]
[313662031,1707552680221,-500.0,0.00022995,2]
[313662032,1707552680242,-500.0,0.00022995,2]
[313662033,1707552680263,-500.0,0.00022995,2]
[313662034,1707552680284,-500.0,0.00022995,2]
[313662035,1707552680305,-500.0,0.00022995,2]
[313662036,1707552680327,-500.0,0.00022995,2]
[313662037,1707552680348,-500.0,0.00022995,2]
[313662038,1707552680369,-563.07,0.00022995,2]
[313662039,1707552680391,-500.0,0.00022995,2]
[313662040,1707552680412,-348.71943713,0.00022996,2]
[313662041,1707552680432,-695.7427728,0.00022996,2]
[313662042,1707552680454,-500.0,0.00022996,2]
[313662043,1707552680476,-500.0,0.00022996,2]
[313662044,1707552680497,-1000.0,0.00022996,2]
[313662045,1707552680519,-643.27614339,0.00022996,2]
[313662046,1707552680541,-2000.0,0.00022996,2]
[313662047,1707552680563,-200.0,0.00022996,2]
[313662048,1707552680587,-500.0,0.00022996,2]
[313662049,1707552680610,-500.0,0.00022996,2]
[313662050,1707552680633,-500.0,0.00022996,2]
[313662051,1707552680656,-795.18,0.00022996,2]
[313662052,1707552680679,-500.0,0.00022996,2]
[313662053,1707552680701,-585.67,0.00022996,2]
[313662054,1707552680725,-837.59,0.00022996,2]
[313662055,1707552680747,-500.0,0.00022996,2]
[313662056,1707552680774,-500.0,0.00022996,2]
[313662057,1707552680797,-500.0,0.00022996,2]
[313662058,1707552680820,-500.0,0.00022996,2]
[313662059,1707552680842,-500.0,0.00022996,2]
[313662060,1707552680866,-500.0,0.00022996,2]
[313662061,1707552680888,-500.0,0.00022999,2]
[313662062,1707552680913,-195909.24868426,0.00023,2]
[313662063,1707552680939,-676.42,0.00023,2]
[313662064,1707552681359,500.0,0.00022995,2]
[313662065,1707552681546,500.0,0.00022895,2]
[313662066,1707552682729,1614.3,0.00022894,2]
[313662067,1707552682877,1680.69,0.00023,2]
[313662068,1707552682917,1267.54388485,0.00022795,2]
[313662069,1707552683616,1366.646221,0.00022893,2]
[313662070,1707552683684,200.0,0.000226,8]
[313662071,1707552683996,537.29,0.00022895,2]
[313662072,1707552684119,500.0,0.000227,8]
[313662073,1707552684299,6614.03,0.00022894,2]
[313662074,1707552684475,288.43,0.000228,8]
[313662075,1707552684498,511.57,0.000228,8]
[313662076,1707552684679,500.0,0.00022995,2]
[313662077,1707552684795,1000.0,0.000229,8]
[313662078,1707552684840,172.03,0.00022232,2]
[313662079,1707552685771,775.13806544,0.00022994,2]
[313662080,1707552686359,500.0,0.00022895,2]
[313662081,1707552687143,2057.97,0.00022895,2]
[313662082,1707552687227,500.0,0.00022895,2]
[313662083,1707552687286,500.0,0.00022894,2]
[313662084,1707552687740,3755.05,0.00022894,2]
[313662085,1707552687772,500.0,0.00022995,2]
[313662086,1707552688053,6631.91,0.00022894,2]
[313662087,1707552688502,1110.14,0.00022994,2]
[313662088,1707552688637,500.0,0.00022894,2]
[313662089,1707552689126,500.0,0.00022895,2]
[313662090,1707552689331,500.0,0.00022894,2]
[313662091,1707552689464,500.0,0.00022994,2]
[313662092,1707552690898,500.0,0.00022895,2]
[313662093,1707552691323,7341.81,0.00022894,2]
[313662094,1707552693140,154.93,0.00022672,2]
[313662095,1707552693266,762.05,0.00022995,2]
[313662096,1707552693370,243.94454967,0.00022894,2]
[313662097,1707552693767,500.0,0.00022895,2]
[313662098,1707552693794,222.2115206,0.00022895,2]
[313662099,1707552696634,4242.92,0.00022994,2]
[313662100,1707552696679,580.71,0.00022895,2]
[313662101,1707552696821,500.0,0.00022894,2]
[313662102,1707552696944,615.09,0.00022894,7]
[313662103,1707552697787,2980.25,0.00022895,2]
[313662104,1707552697910,500.0,0.00022895,2]
[313662105,1707552698411,500.0,0.00022895,2]
[313662106,1707552698440,3532.44,0.00022894,2]
[313662107,1707552698889,500.0,0.00022895,2]
[313662108,1707552700607,336.1462253,0.00022894,2]
[313662109,1707552701140,5032.7066,0.00022794,2]
[313662110,1707552701457,500.0,0.00022894,2]
[313662111,1707552701510,500.0,0.00022895,2]
[313662112,1707552702119,3161.06,0.00022994,2]
[313662113,1707552705914,20280.46,0.00022895,2]
[313662114,1707552706069,500.0,0.00022995,2]
[313662115,1707552706275,500.0,0.00022895,2]
[313662116,1707552707114,500.0,0.00022895,2]
[313662117,1707552708443,24819.75,0.00022894,2]
[313662118,1707552711234,1224.3,0.00022894,2]
[313662119,1707552711635,426.47795133,0.00022895,2]
[313662120,1707552711804,3029.35,0.00022895,2]
[313662121,1707552712771,500.0,0.00022894,2]
[313662122,1707552713077,610.04567483,0.00022895,2]
[313662123,1707552713706,500.0,0.00022895,2]
[313662124,1707552714741,1760.3,0.00022994,2]
[313662125,1707552715394,607.2,0.00022895,2]
[313662126,1707552715829,151.021,0.00022994,2]
[313662127,1707552716499,2000.0,0.00022344,2]
[313662128,1707552716682,151.021,0.00022994,2]
[313662129,1707552717219,561.27,0.00022995,2]
[313662130,1707552717650,151.021,0.00022994,2]
[313662131,1707552717719,500.0,0.00022895,2]
[313662132,1707552718186,500.0,0.00022894,2]
[313662133,1707552718535,469.69746183,0.00022895,2]
[313662134,1707552718637,2500.0,0.00022795,2]
[313662135,1707552720518,986.46,0.00022894,2]
[313662136,1707552721445,151.021,0.00022994,2]
[313662137,1707552722282,151.021,0.00022994,2]
[313662138,1707552723096,500.0,0.00022895,2]
[313662139,1707552724002,500.0,0.00022895,2]
[313662140,1707552724405,500.0,0.00022894,2]
[313662141,1707552725070,1686.95,0.00022895,2]
[313662142,1707552725299,151.021,0.00022994,2]
[313662143,1707552725533,1620.98,0.00022994,2]
[313662144,1707552725930,802.69,0.00022995,2]
[313662145,1707552726156,531.44702969,0.00022895,2]
[313662146,1707552729576,500.0,0.00022894,2]
[313662147,1707552730878,665.31,0.00022895,2]
[313662148,1707552731245,2794.59,0.00022894,2]
[313662149,1707552731335,500.0,0.00022895,2]
[313662150,1707552732370,500.0,0.00022994,2]
[313662151,1707552733983,500.0,0.00022895,2]
[313662152,1707552734138,2505.21,0.00022894,2]
[313662153,1707552736039,2581.06,0.00022895,2]
[313662154,1707552736225,2957.68,0.00022994,2]
[313662155,1707552736299,1553.44,0.00022895,2]
[313662156,1707552737742,157.68315193,0.00022895,2]
[313662157,1707552738987,500.0,0.00022894,2]
[313662158,1707552740102,1397.43,0.00022894,2]
[313662159,1707552740132,299.16745877,0.00022895,2]
[313662160,1707552741036,500.0,0.00022994,2]
[313662161,1707552741202,151.021,0.00023,2]
[313662162,1707552741497,500.0,0.00022894,2]
[313662163,1707552741648,531.4228665,0.00022895,2]
[313662164,1707552742709,500.0,0.00022895,2]
[313662165,1707552743851,500.0,0.00022895,2]
[313662166,1707552743926,500.0,0.00022895,2]
[313662167,1707552743969,161.07707323,0.00022903,2]
[313662168,1707552744554,547.91,0.00022894,2]
[313662169,1707552744733,1727.0,0.00022895,2]
[313662170,1707552745039,8991.99,0.00022894,2]
[313662171,1707552747796,500.0,0.00022895,2]
[313662172,1707552748473,667.86,0.00022895,2]
[313662173,1707552748929,161.07707321,0.00022947,2]
[313662174,1707552749143,3172.65,0.00022894,2]
[313662175,1707552750156,500.0,0.00022895,2]
[313662176,1707552750341,2788.09,0.00022894,2]
[313662177,1707552751505,3038.81,0.00022994,2]
[313662178,1707552752034,580.24825046,0.00022895,2]
[313662179,1707552752713,526.28,0.00022894,2]
[313662180,1707552754226,161.07707321,0.00022991,2]
[313662181,1707552754268,1063.88,0.00022895,2]
[313662182,1707552754528,500.0,0.00022895,2]
[313662183,1707552755006,2521.52,0.00022994,2]
[313662184,1707552755250,517.97354135,0.00022895,2]
[313662185,1707552757472,500.0,0.00022895,2]
[313662186,1707552757728,250.0,0.00022323,2]
[313662187,1707552758384,500.0,0.00022895,2]
[313662188,1707552758912,255.16562423,0.00022895,2]
[313662189,1707552758981,500.0,0.00022894,2]
[313662190,1707552759316,2705.0,0.00022323,2]
[313662191,1707552759349,1772.92,0.00022894,2]
[313662192,1707552760713,265.17791754,0.00022895,2]
[313662193,1707552761122,500.0,0.00022895,2]
[313662194,1707552761374,151.021,0.00023,2]
[313662195,1707552761753,500.0,0.00022894,2]
[313662196,1707552762498,151.021,0.00023,2]
[313662197,1707552762650,500.0,0.00022895,2]
[313662198,1707552763339,4066.14,0.00022895,2]
[313662199,1707552763391,151.021,0.00023,2]
[313662200,1707552763461,2406.45,0.00022894,2]
[313662201,1707552763865,500.0,0.00022894,2]
[313662202,1707552765245,4852.03,0.00022895,2]
[313662203,1707552765413,500.0,0.00022994,2]
[313662204,1707552765695,1034.14,0.00022894,2]
[313662205,1707552766209,500.0,0.00022895,2]
[313662206,1707552767610,500.0,0.00022894,2]
[313662207,1707552767686,500.0,0.00022894,2]
[313662208,1707552767757,500.0,0.00022894,2]
[313662209,1707552767821,500.0,0.00022895,2]
[313662210,1707552768157,500.0,0.00022894,2]
[313662211,1707552768292,500.0,0.00022894,2]
[313662212,1707552768328,500.0,0.00022895,2]
[313662213,1707552770504,3215.02,0.00022894,2]
[313662214,1707552771341,500.0,0.00022894,2]
[313662215,1707552771375,500.0,0.00022895,2]
[313662216,1707552772407,553.84,0.00022895,2]
[313662217,1707552772764,500.0,0.00022895,2]
[313662218,1707552774389,592.55,0.00022894,2]
[313662219,1707552775426,3616.67,0.00022894,2]
[313662220,1707552776308,962.06,0.00022895,2]
[313662221,1707552777176,503.68,0.00022894,2]
[313662222,1707552777492,500.0,0.00022894,2]
[313662223,1707552778398,500.0,0.00022895,2]
[313662224,1707552778891,292.23729216,0.00023,2]
[313662225,1707552779159,1684.79,0.00022894,2]
[313662226,1707552781386,500.0,0.00022895,2]
[313662227,1707552783014,692.35,0.00022894,2]
[313662228,1707552784262,500.0,0.00022894,2]
[313662229,1707552784909,500.0,0.00022895,2]
[313662230,1707552786062,500.0,0.00022895,2]
[313662231,1707552786114,600.01,0.00022894,2]
[313662232,1707552786233,500.0,0.00022894,2]
[313662233,1707552786527,500.0,0.00022895,2]
[313662234,1707552787731,500.0,0.00022895,2]
[313662235,1707552789245,500.0,0.00022995,2]
[313662236,1707552790215,500.0,0.00022895,2]
[313662237,1707552790457,1713.0,0.00022895,2]
[313662238,1707552791195,13837.75,0.00022994,2]
[313662239,1707552791412,500.0,0.00022894,2]
[313662240,1707552793015,511.42,0.00022894,2]
[313662241,1707552793201,7824.14,0.00022894,2]
[313662242,1707552794126,500.0,0.00022895,2]
[313662243,1707552796692,500.0,0.00022895,2]
[313662244,1707552796787,896.68,0.00022894,2]
[313662245,1707552797563,500.0,0.00022894,2]
[313662246,1707552797845,500.0,0.00022894,2]
[313662247,1707552799250,536.46222674,0.00022895,2]
[313662248,1707552800844,911.32,0.00022894,2]
[313662249,1707552802084,500.0,0.00022895,2]
[313662250,1707552802953,500.0,0.00022894,2]
[313662251,1707552803199,500.0,0.00022995,2]
[313662252,1707552803228,915.37,0.00022894,2]
[313662253,1707552804142,500.0,0.00022895,2]
[313662254,1707552804465,500.0,0.00022894,2]
[313662255,1707552804756,500.0,0.00022895,2]
[313662256,1707552805049,2834.44,0.00022895,2]
[313662258,1707552807518,526.86,0.00022895,2]
[313662259,1707552808982,825.49,0.00022895,2]
[313662260,1707552809051,500.0,0.00022995,2]
[313662261,1707552809469,2077.02,0.00022994,2]
[313662262,1707552810059,500.0,0.00022895,2]
[313662263,1707552810135,545.47201291,0.00022894,2]
[313662264,1707552810254,1742.96,0.00022894,2]
[313662265,1707552811259,630.87,0.00022895,2]
[313662266,1707552811343,500.0,0.00022895,2]
[313662267,1707552812054,948.69,0.00022894,2]
[313662268,1707552813850,500.0,0.00022894,2]
[313662269,1707552815114,500.0,0.00022895,2]
[313662270,1707552815204,4466.06,0.00022894,2]
[313662271,1707552817029,817.56,0.00022895,2]
[313662272,1707552818502,688.78,0.00022894,2]
[313662273,1707552819019,921.98,0.00022994,2]
[313662274,1707552820357,13336.84,0.00022894,2]
[313662275,1707552820574,500.0,0.00022995,2]
[313662276,1707552820883,5098.39,0.00022894,2]
[313662277,1707552821214,500.0,0.00022894,2]
[313662278,1707552821252,2912.2,0.00022895,2]
[313662279,1707552822363,500.0,0.00022895,2]
[313662280,1707552822640,500.0,0.00022895,2]
[313662281,1707552824135,500.0,0.00022895,2]
[313662282,1707552824278,500.0,0.00022995,2]
[313662283,1707552825437,500.0,0.00022895,2]
[313662284,1707552826251,647.28,0.00022895,2]
[313662285,1707552826707,500.0,0.00022895,2]
[313662286,1707552826735,1495.82,0.00022894,2]
[313662287,1707552829059,500.0,0.00022894,2]
[313662288,1707552829716,500.0,0.00022895,2]
[313662289,1707552829813,500.0,0.00022895,2]
[313662290,1707552830170,500.0,0.00022895,2]
[313662291,1707552830675,1737.19,0.0002223,2]
[313662292,1707552830999,500.0,0.00022895,2]
[313662293,1707552831939,500.0,0.00022894,2]
[313662294,1707552832097,575.8716719,0.00022995,2]
[313662295,1707552832168,500.0,0.00022894,2]
[313662296,1707552832641,500.0,0.00022895,2]
[313662297,1707552833641,500.0,0.00022894,2]
[313662298,1707552834383,500.0,0.00022895,2]
[313662299,1707552834924,1243.4,0.00022894,2]
[313662300,1707552834952,500.0,0.00022895,2]
[313662301,1707552835105,500.0,0.00022895,2]
[313662302,1707552835188,500.0,0.00022995,2]
[313662303,1707552835348,961.19,0.00022894,2]
[313662304,1707552835380,732.33,0.00022894,2]
[313662305,1707552835837,500.0,0.00022895,2]
[313662306,1707552837905,504.91,0.00022994,2]
[313662307,1707552840065,3908.29,0.00022994,2]
[313662308,1707552840848,850.5,0.00022894,2]
[313662309,1707552841125,296.37206631,0.00022895,2]
[313662310,1707552842501,2903.13,0.00022894,2]
[313662311,1707552842531,352.79896713,0.00022895,2]
[313662312,1707552842860,500.0,0.00022895,2]
[313662313,1707552842919,163.85,0.00022894,2]
[313662314,1707552844192,500.0,0.00022894,2]
[313662315,1707552845247,3523.34,0.00022895,2]
[313662316,1707552845513,1956.11,0.00022895,2]
[313662317,1707552846581,806.03,0.00022994,2]
[313662318,1707552847566,2724.48,0.00022894,2]
[313662319,1707552849153,500.0,0.00022894,2]
[313662320,1707552850175,151.49,0.00022997,2]
[313662321,1707552851458,500.0,0.00022895,2]
[313662322,1707552853043,500.0,0.00022895,2]
[313662323,1707552853646,9499.83,0.00022894,2]
[313662324,1707552854049,500.0,0.00022895,2]
[313662325,1707552854491,795.36,0.00022894,2]
[313662326,1707552854605,500.0,0.00022894,2]
[313662327,1707552855172,1616.66,0.00022894,2]
[313662328,1707552855218,538.28087801,0.00022895,2]
[313662329,1707552855609,620.31,0.00022994,2]
[313662330,1707552856274,500.0,0.00022895,2]
[313662331,1707552856561,13292.89,0.00022994,2]
[313662332,1707552856932,399.80935983,0.00022895,2]
[313662333,1707552857865,500.0,0.00022895,2]
[313662334,1707552859496,500.0,0.00022894,2]
[313662335,1707552860799,510.75596947,0.00022895,2]
[313662336,1707552862870,500.0,0.00022894,2]
[313662337,1707552863526,500.0,0.00022895,2]
[313662338,1707552863755,500.0,0.00022895,2]
[313662339,1707552864449,13261.18,0.00022895,2]
[313662340,1707552864577,5184.63,0.00022894,2]
[313662341,1707552864711,500.0,0.00022895,2]
[313662342,1707552864998,1202.77,0.00022894,2]
[313662343,1707552865775,500.0,0.00022895,2]
[313662344,1707552865897,1488.71,0.00022894,2]
[313662345,1707552866673,500.0,0.00022894,2]
[313662346,1707552867309,500.0,0.00022895,2]
[313662347,1707552869156,500.0,0.00022895,2]
[313662348,1707552869290,542.069128,0.00022895,2]
[313662349,1707552869943,2636.75,0.00022894,2]
[313662350,1707552871266,512.53258443,0.00022895,2]
[313662351,1707552871936,757.09,0.00022894,2]
[313662352,1707552873198,500.0,0.00022895,2]
[313662353,1707552873271,500.0,0.00022895,2]
[313662354,1707552875952,500.0,0.00022895,2]
[313662355,1707552879425,500.0,0.00022895,2]
[313662356,1707552880597,3082.92,0.00022994,2]
[313662357,1707552881039,500.0,0.00022894,2]
[313662358,1707552881316,661.96,0.00022894,2]
[313662359,1707552881451,863.61,0.00022894,2]
[313662360,1707552882083,500.0,0.00022895,2]
[313662361,1707552883033,1990.48,0.00022895,2]
[313662362,1707552883929,1021.86472363,0.00022895,7]
[313662363,1707552884498,500.0,0.00022895,2]
[313662364,1707552885608,500.0,0.00022895,2]
[313662365,1707552885911,500.0,0.00022895,2]
[313662366,1707552886026,2302.03,0.00022895,2]
[313662367,1707552887043,643.4,0.00022894,2]
[313662368,1707552887615,500.0,0.00022895,2]
[313662369,1707552889412,1115.6332,0.00022903,14]
[313662370,1707552889770,536.77142533,0.00022895,2]
[313662371,1707552889844,2468.62,0.00022894,2]
[313662372,1707552891993,4965.05,0.00022894,2]
[313662373,1707552892092,14681.84,0.00022895,2]
[313662374,1707552893168,1852.42,0.00022235,2]
[313662375,1707552893506,500.0,0.00022895,2]
[313662376,1707552894265,500.0,0.00022894,2]
[313662377,1707552894946,500.0,0.00022895,2]
[313662378,1707552895051,805.89,0.00022894,2]
[313662379,1707552896422,594.17,0.00022895,2]
[313662380,1707552896747,500.0,0.00022895,2]
[313662381,1707552898268,500.0,0.00022894,2]
[313662382,1707552898465,527.5507515,0.00022895,2]
[313662383,1707552898566,500.0,0.00022895,2]
[313662384,1707552899071,500.0,0.00022895,2]
[313662385,1707552902527,500.0,0.00022894,2]
[313662386,1707552902903,500.0,0.00022895,2]
[313662387,1707552904692,500.0,0.00022895,2]
[313662388,1707552905168,500.0,0.00022894,2]
[313662389,1707552905398,1041.77,0.00022895,2]
[313662390,1707552905857,2949.93,0.00022894,2]
[313662391,1707552907323,500.0,0.00022895,2]
[313662392,1707552908114,500.0,0.00022895,2]
[313662393,1707552908620,500.0,0.00022894,2]
[313662394,1707552910499,500.0,0.00022894,2]
[313662395,1707552911523,500.0,0.00022895,2]
[313662396,1707552912370,500.0,0.00022894,2]
[313662397,1707552912729,3230.13,0.00022894,2]
[313662398,1707552913401,500.0,0.00022895,2]
[313662399,1707552914131,500.0,0.00022895,2]
[313662400,1707552914379,151.11,0.00022997,2]
[313662401,1707552914406,500.0,0.00022894,2]
[313662402,1707552914432,500.0,0.00022894,2]
[313662403,1707552914582,1972.23,0.00022894,2]
[313662404,1707552915207,5243.06,0.00022894,2]
[313662405,1707552916139,3484.04,0.00022895,2]
[313662406,1707552917245,500.0,0.00022895,2]
[313662407,1707552917273,500.0,0.00022894,2]
[313662408,1707552917589,1641.62,0.00022894,2]
[313662409,1707552918358,3752.4,0.00022894,2]
[313662410,1707552920942,500.0,0.00022895,2]
[313662411,1707552921743,500.0,0.00022895,2]
[313662412,1707552922975,500.0,0.00022894,2]
[313662413,1707552924169,500.0,0.00022895,2]
[313662414,1707552925088,4187.2,0.00022894,2]
[313662415,1707552925115,3745.44,0.00022895,2]
[313662416,1707552925540,504.36967194,0.00022895,2]
[313662417,1707552926202,2651.88,0.00022895,2]
[313662418,1707552927458,180.9589,0.00022903,2]
[313662419,1707552927486,500.0,0.00022894,2]
[313662420,1707552927669,500.0,0.00022895,2]
[313662421,1707552928151,806.91,0.00022894,2]
[313662422,1707552929415,429.97,0.00022233,2]
[313662423,1707552930485,500.0,0.00022895,2]
[313662424,1707552931347,500.0,0.00022894,2]
[313662425,1707552931422,527.94,0.00022894,2]